[Event "Croatian junior league 2021"]
[Site "Rabac"]
[Date "2021.04.11"]
[Round "11.17"]
[White "Colev, Ivor"]
[Black "Damjanovic, Stjepan"]
[Result "1/2-1/2"]
[ECO "B35"]
[WhiteElo "1847"]
[BlackElo "1890"]
[Annotator "NA RC"]
[PlyCount "52"]
[EventDate "2021.04.06"]
[EventType "swiss"]
[EventCountry "CRO"]
[SourceTitle "playchess.com"]
[Source "ChessBase"]
[SourceQuality "1"]
[TimeControl "5400+30"]

1. e4 {[%emt 0:00:23]} c5 {[%emt 0:00:00]} 2. Nf3 {[%emt 0:00:00]} Nc6 {[%emt 0:00:20]} 3. d4 {[%emt 0:00:00]} cxd4 {[%emt 0:00:10]} 4. Nxd4 {[%emt 0:00:00]} Nf6 {[%emt 0:00:48]} 5. Nc3 {[%emt 0:00:00]} g6 {[%emt 0:00:32]} 6. Be3 {[%emt 0:00:00]} (6. Nxc6 $14 bxc6 7. e5) 6... Bg7 $1 {[%emt 0:00:50]} 7. Bc4 {[%emt 0:00:00]} O-O {[%emt 0:00:46]} 8. Bb3 {[%emt 0:00:00]} a5 {[%emt 0:01:12]} 9. f3 {[%emt 0:09:04]} d5 {[%emt 0:05:53]} 10. Nxc6 {[%emt 0:07:37]} bxc6 {[%emt 0:00:59]} 11. exd5 {[%emt 0:00:08]} a4 {[%emt 0:01:25]} 12. Nxa4 {[%emt 0:21:13]} Nxd5 {[%emt 0:02:13]} 13. Bd4 $17 {[%emt 0:02:58]} (13. Bb6 $15 Nxb6 14. Qxd8 Rxd8 15. Nxb6 Bxb2 16. Rd1 Rxd1+ 17. Kxd1) 13... Bxd4 {[%emt 0:17:02]} 14. Qxd4 {[%emt 0:00:08]} e5 {[%emt 0:00:10]} 15. Qd2 {[%emt 0:03:50]} Rxa4 {[%emt 0:26:54]} 16. Bxa4 {[%emt 0:04:48]} Qh4+ {[%emt 0:00:18]} 17. Qf2 {[%emt 0:03:55]} Qb4+ {[%emt 0:01:20]} 18. c3 {[%emt 0:02:29]} Qxa4 {[%emt 0:00:27]} 19. O-O {[%emt 0:00:10]} Nf4 {[%emt 0:00:15]} 20. Qe3 {[%emt 0:06:12]} f6 {[%emt 0:05:58]} 21. b3 {[%emt 0:03:13]} Qa3 {[%emt 0:00:47]} 22. Rfd1 {[%emt 0:01:31]} Qb2 {[%emt 0:06:47]} 23. Qd2 {[%emt 0:01:16]} Qa3 {[%emt 0:01:21]} 24. Qe3 {[%emt 0:05:30]} Qb2 {[%emt 0:07:24]} 25. Qd2 {[%emt 0:00:08]} Qa3 {[%emt 0:00:39]} 26. Qe3 {[%emt 0:03:45]} Nd5 {[%emt 0:11:28]} 1/2-1/2

[Event "Croatian junior league 2021"]
[Site "Rabac"]
[Date "2021.04.11"]
[Round "11.18"]
[White "Mandaric, Fran"]
[Black "Perko, Bartol"]
[Result "1/2-1/2"]
[ECO "B01"]
[WhiteElo "1684"]
[BlackElo "1766"]
[Annotator "NA RC"]
[PlyCount "64"]
[EventDate "2021.04.06"]
[EventType "swiss"]
[EventCountry "CRO"]
[SourceTitle "playchess.com"]
[Source "ChessBase"]
[SourceQuality "1"]
[TimeControl "5400+30"]

1. e4 {[%emt 0:00:00]} d5 {[%emt 0:00:00]} 2. exd5 {[%emt 0:00:00]} Qxd5 {[%emt 0:00:00]} 3. Nc3 {[%emt 0:00:00]} Qd8 {[%emt 0:00:00]} 4. d4 {[%emt 0:00:00]} Nf6 {[%emt 0:00:00]} 5. Bc4 {[%emt 0:00:01]} Bg4 {[%emt 0:00:27]} 6. Nf3 {[%emt 0:00:14]} e6 {[%emt 0:00:06]} 7. h3 {[%emt 0:00:15]} Bxf3 {[%emt 0:00:40]} 8. Qxf3 {[%emt 0:00:38]} c6 {[%emt 0:00:02]} 9. Be3 {[%emt 0:16:58]} Be7 {[%emt 0:01:07]} 10. O-O {[%emt 0:00:38]} O-O {[%emt 0:00:08]} 11. Rad1 {[%emt 0:08:22]} Nbd7 {[%emt 0:01:28]} 12. Qg3 {[%emt 0:02:18]} Kh8 {[%emt 0:00:28]} 13. f4 {[%emt 0:02:22]} Nb6 {[%emt 0:01:25]} 14. Bd3 {[%emt 0:03:02]} Nfd5 {[%emt 0:04:26]} 15. Nxd5 {[%emt 0:04:07]} Nxd5 {[%emt 0:03:37]} 16. c4 {[%emt 0:00:11]} Nxe3 {[%emt 0:00:10]} 17. Qxe3 {[%emt 0:00:06]} Bf6 {[%emt 0:03:42]} 18. Bc2 {[%emt 0:02:49]} g6 {[%emt 0:03:17]} 19. Kh1 {[%emt 0:05:49]} Bg7 {[%emt 0:02:15]} 20. Rd2 {[%emt 0:05:09]} Qc7 {[%emt 0:01:53]} 21. Rfd1 {[%emt 0:04:05]} Rad8 {[%emt 0:00:48]} 22. b3 {[%emt 0:03:58]} Kg8 {[%emt 0:03:28]} 23. Be4 {[%emt 0:00:36]} Qb6 {[%emt 0:02:08]} 24. Bf3 {[%emt 0:04:32]} Rd7 {[%emt 0:02:31]} 25. Qe4 {[%emt 0:01:27]} Rfd8 {[%emt 0:00:53]} 26. d5 {[%emt 0:00:59]} cxd5 {[%emt 0:01:34]} 27. cxd5 {[%emt 0:00:10]} exd5 {[%emt 0:01:08]} 28. Rxd5 {[%emt 0:01:56]} Rxd5 {[%emt 0:00:11]} 29. Rxd5 {[%emt 0:00:07]} Rxd5 {[%emt 0:00:05]} 30. Qe8+ {[%emt 0:04:59]} Bf8 {[%emt 0:02:00]} 31. Bxd5 {[%emt 0:00:14]} Qf6 {[%emt 0:00:24]} 32. Qe5 {[%emt 0:02:31]} Qxe5 {[%emt 0:02:49]} 1/2-1/2

[Event "Croatian junior league 2021"]
[Site "Rabac"]
[Date "2021.04.11"]
[Round "11.19"]
[White "Poljan, Max"]
[Black "Juric, Ester"]
[Result "0-1"]
[ECO "A23"]
[WhiteElo "1573"]
[BlackElo "1587"]
[Annotator "NA RC"]
[PlyCount "57"]
[EventDate "2021.04.06"]
[EventType "swiss"]
[EventCountry "CRO"]
[SourceTitle "playchess.com"]
[Source "ChessBase"]
[SourceQuality "1"]
[TimeControl "5400+30"]

1. c4 {[%emt 0:00:00]} e5 {[%emt 0:00:00]} 2. g3 {[%emt 0:00:00]} Nf6 {[%emt 0:00:00]} 3. Bg2 {[%emt 0:00:00]} c6 {[%emt 0:00:00]} 4. Nc3 {[%emt 0:00:00]} d5 {[%emt 0:00:00]} 5. cxd5 {[%emt 0:00:07]} cxd5 {[%emt 0:00:00]} 6. d4 {[%emt 0:00:20]} exd4 {[%emt 0:00:25]} 7. Qxd4 {[%emt 0:00:18]} Nc6 {[%emt 0:00:41]} 8. Qa4 {[%emt 0:00:41]} d4 {[%emt 0:02:18]} 9. Ne4 {[%emt 0:03:06]} Nxe4 {[%emt 0:01:30]} 10. Bxe4 {[%emt 0:00:13]} Bb4+ {[%emt 0:02:13]} 11. Bd2 {[%emt 0:01:59]} Bxd2+ {[%emt 0:01:27]} 12. Kxd2 {[%emt 0:00:06]} O-O {[%emt 0:03:17]} 13. Nf3 {[%emt 0:06:37]} Qb6 {[%emt 0:06:14]} 14. Rhb1 {[%emt 0:10:41]} Rd8 {[%emt 0:07:36]} 15. Bd3 {[%emt 0:05:21]} h6 {[%emt 0:09:39]} 16. Qb5 {[%emt 0:11:52]} Qxb5 {[%emt 0:01:02]} 17. Bxb5 {[%emt 0:00:41]} Bf5 {[%emt 0:00:12]} 18. Bd3 {[%emt 0:02:09]} Bxd3 {[%emt 0:00:20]} 19. exd3 {[%emt 0:00:42]} Rac8 {[%emt 0:01:53]} 20. Rc1 {[%emt 0:05:34]} f6 {[%emt 0:10:01]} 21. Rc4 {[%emt 0:07:51]} b5 {[%emt 0:03:12]} 22. Rc5 {[%emt 0:01:43]} Ne5 {[%emt 0:01:10]} 23. Rxc8 {[%emt 0:02:18]} Nxf3+ {[%emt 0:00:12]} 24. Ke2 {[%emt 0:00:07]} Rxc8 {[%emt 0:00:02]} 25. Kxf3 {[%emt 0:00:05]} Rc2 {[%emt 0:00:11]} 26. Rb1 {[%emt 0:07:25]} Kf7 {[%emt 0:00:26]} 27. Ke4 {[%emt 0:04:56]} Rxf2 {[%emt 0:02:59]} 28. Kxd4 {[%emt 0:00:06]} Rf5 {[%emt 0:06:42]} 29. Ke4 {[%emt 0:00:47]} 0-1